bitfinex-derivatives/quotes_ETHF0:USTF0_20220106
["timestamp","ask_amount","ask_price","bid_price","bid_amount"]
[1641480925871,0.384472,3401.5,3400.9,2.00479]
[1641480925872,0.397182,3401.4,3400.9,2.00479]
[1641480928773,1.897182,3401.4,3400.9,2.00479]
[1641480929273,0.397182,3401.4,3400.9,2.00479]
[1641480930078,0.74268188,3402.1,3401.0,0.092343]
[1641480930276,0.74268188,3402.1,3401.0,0.653343]
[1641480930477,0.74268188,3402.0,3401.0,0.653343]
[1641480931587,0.74268188,3402.7,3401.0,0.653343]
[1641480931777,2.00479,3402.6,3401.8,2.00479]
[1641480931975,13.461654,3402.5,3401.8,2.00479]
[1641480932475,0.781654,3402.5,3401.8,2.00479]
[1641480933776,0.781654,3402.5,3401.9,0.092343]
[1641480933976,0.384472,3402.5,3401.9,0.918143]
[1641480934176,0.74268188,3402.8,3401.9,0.918143]
[1641480934778,2.00479,3402.9,3401.9,0.918143]
[1641480935778,14.68479,3402.9,3402.3,2.00479]
[1641480935980,0.781654,3402.8,3402.3,2.00479]
[1641480936177,1.549054,3402.8,3402.3,2.00479]
[1641480936780,1.549054,3402.8,3401.9,0.092343]
[1641480937883,12.68,3402.7,3401.9,0.092343]
[1641480938180,0.397182,3402.6,3401.9,0.092343]
[1641480938583,0.397182,3402.6,3401.8,2.00479]
[1641480939382,0.397182,3402.6,3401.9,0.092343]
[1641480940585,0.74268188,3402.9,3401.9,0.092343]
[1641480940789,12.68,3403.0,3401.9,0.092343]
[1641480940790,0.74268188,3402.7,3401.9,0.092343]
[1641480941787,0.384472,3402.6,3401.9,0.092343]
[1641480941987,0.397182,3402.5,3401.8,2.00479]
[1641480942589,0.397182,3402.5,3401.0,0.74321139]
[1641480942590,1.5,3402.0,3401.0,0.74321139]
[1641480942790,14.9536,3402.0,3401.0,0.74321139]
[1641480943291,14.9536,3402.0,3400.7,0.98194548]
[1641480943491,13.4536,3402.0,3400.6,0.74321139]
[1641480943700,0.7736,3402.0,3400.6,0.74321139]
[1641480943990,0.7736,3402.0,3401.2,2.00479]
[1641480943991,15.45839,3402.0,3401.2,2.00479]
[1641480944191,0.781654,3401.9,3401.2,0.00479]
[1641480948898,0.397182,3401.9,3401.3,0.092343]
[1641480949195,0.397182,3401.9,3401.3,0.755743]
[1641480949497,0.781654,3401.9,3401.3,0.755743]
[1641480950897,2.00479,3402.0,3401.3,0.755743]
[1641480951097,0.397182,3401.9,3401.3,0.755743]
[1641480951503,0.384472,3401.8,3401.3,0.755743]
[1641480951898,0.397182,3401.7,3401.3,0.6634]
[1641480952100,0.397182,3401.7,3401.2,0.00479]
[1641480954400,2.00479,3402.0,3401.3,0.092343]
[1641480954801,0.384472,3401.9,3401.3,0.092343]
[1641480955403,0.397182,3401.8,3401.3,0.092343]
[1641480957604,0.384472,3401.9,3401.3,0.092343]
[1641480957806,0.74268188,3402.7,3401.8,1.5]
[1641480958004,0.74268188,3402.7,3402.3,2.00479]
[1641480958205,0.74268188,3402.7,3402.4,0.092343]
[1641480958805,3.49025221,3403.5,3402.5,0.384418]
[1641480959005,1.48546221,3403.5,3402.6,0.092343]
[1641480959207,0.74215703,3403.4,3402.6,0.092343]
[1641480959606,0.74215703,3403.4,3402.6,1.56086019]
[1641480960006,0.74215703,3403.4,3403.1,2.00479]
[1641480960207,0.384472,3403.3,3403.1,2.00479]
[1641480960907,2.00479,3403.9,3403.2,1.976815]
[1641480961107,1.70549794,3404.5,3403.7,1.5]
[1641480961509,1.70549794,3404.5,3403.9,2.96797179]
[1641480961710,1.70549794,3404.5,3404.2,1.5]
[1641480962010,1.23772986,3404.5,3404.4,2.00479]
[1641480962309,1.23772986,3405.0,3404.4,2.00479]
[1641480962507,1.62220186,3405.0,3404.4,2.097133]
[1641480962709,2.01938386,3405.0,3404.4,2.097133]
[1641480963710,2.01938386,3405.0,3403.7,1.32402826]
[1641480963912,14.18,3404.9,3403.6,0.619]
[1641480964110,14.68479,3404.2,3403.1,2.00479]
[1641480964309,15.44269,3404.2,3403.1,2.00479]
[1641480964611,2.76269,3404.2,3403.1,2.00479]
[1641480965514,16.91134954,3404.2,3403.1,2.00479]
[1641480965713,15.44269,3404.2,3403.1,2.00479]
[1641480966113,1.5,3403.6,3403.1,2.00479]
[1641480966313,1.5,3403.4,3401.8,65.2391]
[1641480966515,14.92,3403.4,3401.1,1.22685598]
[1641480966715,14.92,3403.4,3401.7,1.46892705]
[1641480967317,14.92,3403.4,3401.1,1.22685598]
[1641480967518,14.92,3403.4,3401.6,1.46897452]
[1641480967718,14.92,3403.4,3400.9,1.5]
[1641480967920,45.3356,3403.4,3400.9,1.5]
[1641480968120,2.00479,3402.6,3401.8,2.00479]
[1641480968320,0.384472,3402.5,3401.9,0.476815]
[1641480969122,2.00479,3403.0,3401.9,0.476815]
[1641480970125,2.00479,3403.0,3402.5,2.00479]
[1641480970324,2.00479,3403.0,3402.6,0.476815]
[1641480970525,2.389262,3403.0,3402.6,0.476815]
[1641480970726,2.389262,3403.0,3402.6,0.092343]
[1641480971329,2.00479,3403.0,3402.6,0.092343]
[1641480972626,0.397182,3402.9,3401.8,2.00479]
[1641480972826,0.397182,3402.9,3400.9,2.4700787]
[1641480973029,0.397182,3402.9,3401.1,1.46919466]
[1641480973229,1.46938248,3402.6,3400.9,0.9700787]
[1641480973926,1.46938248,3402.6,3400.9,0.619]
[1641480974126,2.00479,3401.8,3401.0,2.00479]
[1641480974328,2.83199,3401.8,3401.1,0.092343]
[1641480974627,2.83199,3401.8,3401.2,2.96912991]
[1641480974828,2.83199,3401.8,3401.3,0.092343]
[1641480975728,2.83199,3401.8,3401.1,0.384472]
[1641480975929,2.83199,3401.8,3401.0,2.00479]
[1641480976128,2.83199,3401.8,3401.1,0.092343]
[1641480976328,3.229172,3401.8,3401.1,0.092343]
[1641480976530,3.229172,3401.8,3401.1,0.476815]
[1641480978528,3.229172,3401.8,3401.0,2.00479]
[1641480978728,3.229172,3401.8,3400.1,0.9700787]
[1641480978729,1.5,3401.2,3400.1,0.9700787]
[1641480979131,1.47011045,3400.9,3399.8,5.467]
[1641480979329,2.13061045,3400.9,3399.8,5.467]
[1641480979529,0.6605,3400.9,3399.7,0.9700787]
[1641480980129,2.00479,3400.8,3400.0,2.00479]
[1641480980331,0.781654,3400.7,3400.1,0.384472]
[1641480980528,0.781654,3400.7,3399.7,0.9700787]
[1641480980830,13.461654,3400.7,3399.0,0.72658372]
[1641480981029,1.47041741,3400.2,3399.0,0.72658372]
[1641480981232,0.6437,3400.2,3399.0,0.72658372]
[1641480981832,1.5,3400.0,3399.0,0.72658372]
[1641480982230,2.00479,3399.4,3398.8,0.9700787]
[1641480982432,0.781654,3399.3,3398.6,2.00479]
[1641480982832,0.781654,3399.3,3398.7,0.092343]
[1641480983633,0.397182,3399.3,3398.7,0.092343]
[1641480985234,0.781654,3399.3,3398.7,0.092343]
[1641480985836,13.461654,3399.3,3398.3,2.00479]
[1641480986036,14.961654,3399.3,3398.0,0.72658372]
[1641480986238,2.00479,3398.7,3397.9,2.00479]
[1641480986437,0.397182,3398.6,3397.9,2.00479]
[1641480987039,0.397182,3398.6,3397.9,2.389262]
[1641480987238,0.397182,3398.6,3397.9,2.481605]
[1641480989044,0.384472,3398.5,3397.9,2.481605]
[1641480989446,2.00479,3398.7,3397.9,2.481605]
[1641480990948,0.781654,3398.6,3397.9,2.097133]
[1641480991147,1.424254,3398.6,3397.9,2.00479]
[1641480991549,1.424254,3398.6,3398.0,0.384472]
[1641480991947,1.424254,3398.6,3397.9,2.097133]
[1641480992147,1.424254,3398.6,3397.9,2.00479]
[1641480992349,1.039782,3398.6,3398.0,0.092343]
[1641480992548,0.397182,3398.6,3398.0,0.092343]
[1641480993649,0.397182,3398.6,3398.1,0.384472]
[1641480994249,0.397182,3398.6,3397.5,2.00479]
[1641480994448,1.5,3398.5,3396.7,31.0046]
[1641480994649,14.18,3398.5,3396.7,1.47110096]
[1641480994848,12.68,3398.5,3396.7,1.47110096]
[1641480995449,2.17970096,3398.6,3396.7,1.47110096]
[1641480995654,12.68,3398.5,3396.7,1.47110096]
[1641480995851,12.68,3398.5,3396.4,31.259]
[1641480996150,2.00479,3397.8,3397.0,2.00479]
[1641480996350,0.781654,3397.7,3397.1,0.384472]
[1641480997250,0.781654,3397.7,3397.0,2.00479]
[1641480997451,0.781654,3397.7,3396.7,2.00479]
[1641480998253,2.00479,3397.2,3396.7,2.00479]
[1641480998452,2.401972,3397.2,3396.7,2.00479]
[1641480998852,2.401972,3397.2,3396.7,2.097133]
[1641480999152,2.00479,3397.2,3396.7,2.097133]
[1641480999355,2.00479,3397.8,3396.8,1.47104469]
[1641480999553,2.00479,3397.8,3396.8,2.26024469]
[1641481000756,2.00479,3397.8,3396.8,0.7892]
[1641481000954,2.00479,3397.8,3396.7,4.00958]
[1641481002357,2.00479,3397.8,3396.7,2.00479]
[1641481002856,14.68479,3397.8,3396.7,2.00479]
[1641481003856,14.68479,3397.8,1650.0,24.19276852]
[1641481003857,2.97196496,3396.8,3395.4,5.467]
[1641481004057,1.5,3396.2,3395.4,5.467]
[1641481004256,2.00479,3395.6,3395.4,5.465]
[1641481004456,3.237472,3395.6,3394.8,0.45389]
[1641481004658,0.397182,3395.5,3394.8,0.45389]
[1641481004857,2.00479,3395.9,3395.3,1.5]
[1641481005056,5.5,3398.2,3395.5,1.5]
[1641481005256,1.47146029,3397.8,3395.8,1.47146029]
[1641481005859,12.68,3397.6,3395.8,1.47146029]
[1641481006156,32.3424,3397.7,3395.8,1.47146029]
[1641481006357,2.00479,3396.7,3395.9,2.00479]
[1641481006558,2.00479,3396.7,3396.0,0.092343]
[1641481006757,2.00479,3396.7,3396.1,0.384472]
[1641481006957,2.00479,3396.7,3396.2,0.092343]
[1641481007558,2.389262,3396.7,3396.2,0.092343]
[1641481007760,2.786444,3396.7,3396.2,0.092343]
[1641481008761,2.786444,3396.7,3395.9,2.00479]
[1641481009060,3.406244,3396.7,3395.9,2.00479]
[1641481009462,3.406244,3396.7,3396.0,0.476815]
[1641481009963,2.00479,3396.7,3396.0,0.476815]
[1641481010161,2.00479,3396.7,3396.0,1.976815]
[1641481010763,2.00479,3396.7,3396.2,1.47129143]
[1641481010965,2.00479,3396.7,3396.3,0.092343]
[1641481011963,1.02548939,3396.7,3396.3,0.092343]
[1641481012262,2.00479,3397.1,3396.4,1.5]
[1641481012463,2.00479,3397.1,3396.5,0.092343]
[1641481014664,2.389262,3397.1,3396.5,0.092343]
[1641481015966,2.00479,3397.1,3396.5,0.092343]
[1641481016664,2.389262,3397.1,3396.5,0.092343]
[1641481017063,2.00479,3397.1,3396.5,0.924343]
[1641481019666,2.00479,3397.1,3396.5,0.092343]
[1641481020171,2.389262,3397.1,3396.5,0.092343]
[1641481020367,3.319644,3397.1,3396.5,0.092343]
[1641481021068,2.53799,3397.1,3396.5,0.092343]
[1641481021466,2.00479,3397.1,3396.5,0.092343]
[1641481022367,2.00479,3397.1,3396.7,2.00479]
[1641481022668,2.00479,3397.1,3396.8,0.476815]
[1641481023067,0.459982,3397.0,3396.8,0.092343]
[1641481023672,2.00479,3397.1,3396.8,0.092343]
[1641481024969,0.459982,3397.0,3396.8,0.092343]
[1641481025170,2.00479,3397.1,3396.8,0.092343]
[1641481025771,0.459982,3397.0,3396.8,0.092343]
[1641481026175,0.77523602,3399.3,3396.9,1.5]
[1641481026372,0.77523602,3399.3,3399.0,2.00479]
[1641481026573,0.153218,3399.2,3399.0,0.8829]
[1641481026773,0.153218,3399.2,3398.6,2.00479]
[1641481026972,1.804839,3399.1,3398.6,2.00479]
[1641481027173,1.5,3398.7,3396.0,1.5]
[1641481027374,1.5,3397.8,3395.6,6.967]
[1641481027575,31.6815,3397.7,3395.9,1.5]
[1641481027775,31.6815,3397.7,3395.3,1.5]
[1641481027976,31.6815,3397.7,3395.9,1.5]
[1641481028380,2.00479,3397.5,3396.7,2.00479]
[1641481028578,0.304839,3397.4,3396.7,2.00479]
[1641481028779,0.304839,3397.4,3396.7,2.786444]
[1641481029680,0.304839,3397.4,3396.7,2.401972]
[1641481030780,2.00479,3397.5,3396.8,0.384472]
[1641481030979,2.00479,3397.5,3396.9,0.397182]
[1641481033581,2.00479,3397.5,3396.3,2.00479]
[1641481033582,3.809629,3397.5,3396.3,2.00479]
[1641481033781,12.68,3397.4,3396.3,2.00479]
[1641481034382,2.00479,3397.1,3396.3,2.00479]
[1641481034582,0.304839,3397.0,3396.3,2.00479]
[1641481034782,1.47181764,3396.9,3396.3,2.00479]
[1641481034983,0.304839,3396.8,3396.3,2.00479]
[1641481035183,1.131039,3396.8,3396.3,2.00479]
[1641481035583,0.8262,3396.8,3396.3,2.00479]
[1641481035985,0.8262,3396.8,3396.4,0.397182]
[1641481036186,2.00479,3397.5,3396.4,1.056282]
[1641481036387,2.00479,3397.9,3397.1,2.00479]
[1641481036593,0.304839,3397.8,3397.1,2.58239]
[1641481037589,0.304839,3397.8,3397.1,2.979572]
[1641481037786,0.304839,3397.8,3397.2,0.384472]
[1641481037987,2.00479,3397.9,3397.2,0.384472]
[1641481038187,2.309629,3397.9,3397.3,0.397182]
[1641481038386,0.304839,3397.9,3397.5,2.00479]
[1641481039787,2.00479,3398.3,3397.6,0.397182]
[1641481039987,2.309629,3398.3,3397.6,0.983382]
[1641481041392,2.00479,3398.6,3397.6,0.983382]
[1641481042392,2.00479,3398.6,3397.9,2.00479]
[1641481042592,2.00479,3398.6,3398.0,0.397182]
[1641481042792,2.309629,3398.6,3398.0,0.397182]
[1641481042992,2.00479,3398.6,3398.0,0.397182]
[1641481043394,2.309629,3398.6,3398.0,0.397182]
[1641481045997,2.309629,3398.6,3398.1,0.14094842]
[1641481047097,2.309629,3398.6,3398.3,0.73601628]
[1641481047297,0.153218,3398.5,3398.3,0.73601628]
[1641481048299,0.153218,3398.5,3398.2,0.73601628]
[1641481048498,2.309629,3398.6,3398.3,0.459982]
[1641481048898,2.309629,3398.6,3398.2,1.51767028]
[1641481049302,2.309629,3398.6,3398.3,0.73601628]
[1641481049500,0.153218,3398.5,3398.3,0.73601628]
[1641481050400,0.153218,3398.5,3398.2,0.73601628]
[1641481051102,0.153218,3398.5,3398.1,1.13319828]
[1641481051303,0.153218,3398.5,3398.1,0.73601628]
[1641481051304,0.304839,3398.4,3398.1,0.73601628]
[1641481051502,0.153218,3398.3,3398.1,0.73601628]
[1641481052804,0.153218,3398.3,3398.1,0.87709919]
[1641481053706,0.153218,3398.3,3398.2,0.73601628]
[1641481054805,1.653218,3398.3,3397.9,0.97561233]
[1641481055005,12.68,3397.9,3397.4,1.47291822]
[1641481055205,13.5417,3397.9,3397.4,1.47291822]
[1641481055404,0.304839,3397.8,3397.4,1.47291822]
[1641481056305,0.304839,3397.8,3396.8,0.49440877]
[1641481056505,2.00479,3397.6,3396.8,2.49919877]
[1641481056706,0.304839,3397.5,3396.9,0.384472]
[1641481056906,0.304839,3397.5,3396.9,0.781654]
[1641481057306,2.00479,3397.6,3396.9,0.781654]
[1641481057507,0.304839,3397.5,3396.9,0.781654]
[1641481057705,1.113939,3397.5,3396.9,0.781654]
[1641481058907,2.00479,3397.9,3396.9,0.781654]
[1641481059111,2.00479,3397.9,3396.9,2.840354]
[1641481059311,2.00479,3397.9,3397.0,1.47096247]
[1641481059511,2.00479,3397.9,3396.9,0.943172]
[1641481060113,2.00479,3397.9,3396.9,0.384472]
[1641481060414,2.00479,3397.9,3397.0,1.47291822]
[1641481060614,2.00479,3397.9,3397.3,2.00479]
[1641481060813,2.00479,3397.9,3397.4,0.397182]
[1641481063316,2.00479,3397.9,3397.4,2.4821411]
[1641481063516,2.00479,3398.4,3397.4,2.4821411]
[1641481064517,2.00479,3398.4,3397.9,2.00479]
[1641481064719,2.00479,3398.4,3398.0,0.781654]
[1641481066321,2.00479,3398.4,3398.0,1.76352128]
[1641481067227,2.00479,3398.4,3398.1,0.98186728]
[1641481067524,2.00479,3398.4,3398.2,0.857164]
[1641481067923,0.153218,3398.3,3398.1,0.98186728]
[1641481068726,0.153218,3398.3,3398.1,1.44184928]
[1641481068926,0.153218,3398.3,3398.1,0.98186728]
[1641481069328,0.153218,3398.3,3398.0,0.384472]
[1641481069729,2.62099,3398.4,3398.1,0.459982]
[1641481069928,2.62099,3398.4,3398.0,0.384472]
[1641481070429,2.62099,3398.4,3398.1,0.98186728]
[1641481070430,0.99693639,3398.2,3398.1,0.98186728]
[1641481070829,1.15015439,3398.2,3398.1,0.98186728]
[1641481071429,1.15015439,3398.2,3398.0,0.98186728]
[1641481073332,0.304839,3398.1,3398.0,0.98186728]
[1641481074631,3.30656539,3398.1,3397.9,0.98186728]
[1641481074831,0.153218,3398.0,3397.9,0.98186728]
[1641481075934,0.62160258,3398.0,3397.9,0.73703022]
[1641481076532,0.62160258,3398.0,3397.9,1.19701222]
[1641481076734,0.62160258,3398.0,3397.9,0.73703022]
[1641481076935,0.46838458,3398.0,3397.9,0.73703022]
[1641481077233,0.46838458,3398.0,3397.6,0.384472]
[1641481077639,0.46838458,3398.0,3397.7,1.62467801]
[1641481077837,0.46838458,3398.0,3397.8,0.459982]
[1641481078337,0.153218,3397.9,3397.8,0.459982]
[1641481078538,0.46838458,3398.0,3397.7,1.62467801]
[1641481078736,0.46838458,3398.0,3397.8,0.459982]
[1641481079137,0.304839,3398.0,3397.7,1.22749601]
[1641481079339,0.74915774,3398.0,3397.9,0.13760243]
[1641481080239,0.90237574,3398.0,3397.9,0.13760243]
[1641481080637,0.74915774,3398.0,3397.9,0.59758443]
[1641481080839,2.309629,3398.1,3397.9,0.459982]
[1641481081039,2.00479,3398.1,3397.9,0.459982]
[1641481081239,2.00479,3398.1,3397.9,0.857164]
[1641481081839,2.00479,3398.1,3398.0,0.13760243]
[1641481082039,2.00479,3398.1,3398.0,0.59758443]
[1641481082842,2.158008,3398.1,3398.0,0.13760243]
[1641481083139,2.00479,3398.1,3398.0,0.8715744]
[1641481083738,2.158008,3398.1,3398.0,0.8715744]
[1641481083939,2.00479,3398.1,3398.0,0.59758443]
[1641481084439,0.74915774,3398.5,3398.0,2.09758443]
[1641481084641,2.00479,3399.4,3398.4,4.97488316]
[1641481084839,2.00479,3399.4,3398.4,4.10308316]
[1641481085341,2.00479,3399.4,3398.7,1.5]
[1641481085542,2.00479,3399.4,3398.8,0.781654]
[1641481085743,0.99677405,3398.9,3398.8,0.781654]
[1641481085940,0.99677405,3398.9,3398.8,1.241636]
[1641481086840,0.99677405,3398.9,3398.8,0.857164]
[1641481087141,0.153218,3398.9,3398.4,2.00479]
[1641481087740,0.304839,3398.9,3398.8,0.13760243]
[1641481087940,0.153218,3398.9,3398.8,0.13760243]
[1641481088142,0.5941,3399.2,3398.8,0.59758443]
[1641481088340,0.5941,3399.2,3398.8,0.13760243]
[1641481089142,0.5941,3399.2,3398.6,0.397182]
[1641481089342,0.304839,3399.1,3398.6,0.397182]
[1641481089544,1.5,3399.0,3398.4,2.00479]
[1641481089746,1.5,3398.7,3397.6,1.84028397]
[1641481090148,1.47093001,3399.0,3397.6,1.84028397]
[1641481090648,2.00479,3398.7,3397.9,2.00479]
[1641481090847,2.00479,3398.7,3398.0,0.397182]
[1641481091044,0.304839,3398.6,3398.0,0.397182]
[1641481091461,0.77314385,3398.6,3398.0,0.397182]
[1641481092247,13.45314385,3398.6,3398.0,0.397182]
[1641481093049,0.46830485,3398.5,3398.1,0.25878126]
[1641481093263,0.304839,3398.4,3398.1,0.25878126]
[1641481093453,12.68,3398.1,3397.1,1.84028397]
[1641481093650,1.5,3397.9,3397.1,1.84028397]
[1641481093850,12.68,3397.6,3397.1,1.84028397]
[1641481094051,13.5063,3397.6,3397.1,1.84028397]
[1641481094251,0.304839,3397.5,3397.4,1.2254377]
[1641481094451,0.458057,3397.5,3397.4,1.2254377]
[1641481094652,17.147637,3397.5,3397.4,0.1867377]
[1641481094854,20.11928569,3397.5,3397.0,0.49440877]
[1641481095153,1.5,3397.1,3396.9,1.84028397]
[1641481095352,0.458057,3397.0,3396.9,1.84028397]
[1641481095552,3.27665014,3397.0,3396.9,8.397e-05]
[1641481095753,14.45665014,3397.0,3396.7,2.47560784]
[1641481095952,1.5,3396.8,3396.7,2.47560784]
[1641481096152,15.391657,3396.8,3395.4,30.7005]
[1641481096355,15.391657,3396.8,3396.0,1.84172629]
[1641481096553,15.391657,3396.8,3396.1,0.62459842]
[1641481096753,2.00479,3396.2,3396.1,0.62459842]
[1641481096953,2.309629,3396.2,3396.1,0.62459842]
[1641481097153,2.309629,3396.2,3396.1,1.08458042]
[1641481097354,2.00479,3396.2,3396.1,1.08458042]
[1641481097957,2.00479,3396.2,3396.1,0.459982]
[1641481098154,2.158008,3396.2,3395.9,0.397182]
[1641481098357,2.158008,3396.2,3395.1,1.47]
[1641481098555,2.00479,3396.4,3395.2,1.5]
[1641481098756,12.68,3396.7,3395.7,2.00479]
[1641481099759,2.00479,3396.8,3395.7,2.00479]
[1641481101264,2.00479,3396.8,3395.8,1.5]
[1641481101463,2.00479,3396.8,3395.9,1.4714473]
[1641481101663,2.00479,3396.8,3395.7,2.00479]
[1641481101964,15.22939,3396.8,3395.7,2.00479]
[1641481102664,4.55418,3396.8,3395.7,5.0706297]
[1641481102864,17.23418,3396.8,3395.7,5.0706297]
[1641481103765,17.23418,3396.8,3396.1,1.47424986]
[1641481103964,0.304839,3396.7,3396.1,1.47424986]
[1641481104363,0.304839,3396.7,3396.1,1.87143186]
[1641481104965,0.304839,3396.7,3396.3,1.22857598]
[1641481106468,0.304839,3396.7,3396.2,1.22857598]
[1641481107471,4.00958,3396.8,3396.3,0.397182]
[1641481107869,4.314419,3396.8,3396.3,0.397182]
[1641481108069,4.314419,3396.8,3396.2,1.22857598]
[1641481108271,12.68,3396.7,3396.2,1.22857598]
[1641481108471,0.304839,3396.6,3396.2,1.22857598]
[1641481110175,0.304839,3396.6,3396.0,1.22857598]
[1641481110377,12.68,3396.7,3396.1,0.781654]
[1641481110776,12.68,3396.7,3396.1,2.786444]
[1641481111178,12.984839,3396.7,3396.1,4.01501998]
[1641481111577,12.984839,3396.7,3396.1,3.63054798]
[1641481111777,12.984839,3396.7,3396.4,0.98173656]
[1641481111979,0.153218,3396.6,3396.4,0.98173656]
[1641481112677,0.304839,3396.5,3396.4,0.98173656]
[1641481112877,0.304839,3396.5,3396.3,0.98173656]
[1641481113077,0.153218,3396.4,3396.3,0.98173656]
[1641481113780,0.153218,3396.4,3396.2,0.98173656]
[1641481114179,0.304839,3396.3,3396.2,0.98173656]
[1641481114581,0.304839,3396.3,3396.1,0.98173656]
[1641481114879,0.304839,3396.3,3396.1,1.36620856]
[1641481115280,0.304839,3396.3,3396.1,0.98173656]
[1641481115680,0.153218,3396.2,3396.1,0.98173656]
[1641481115881,0.827118,3396.2,3396.1,0.98173656]
[1641481116780,0.827118,3396.2,3396.0,0.98173656]
[1641481116980,1.131957,3396.2,3396.0,0.98173656]
[1641481117779,1.131957,3396.2,3395.8,0.23644351]
[1641481117981,1.131957,3396.2,3395.9,1.47424986]
[1641481119583,1.5,3396.1,3395.9,1.47424986]
[1641481119884,13.138057,3396.0,3395.7,1.84281232]
[1641481120584,13.138057,3396.0,3394.2,37.7019]
[1641481120585,13.138057,3396.0,3395.8,1.47808783]
[1641481120784,14.68479,3395.9,3395.8,1.47808783]
[1641481121184,16.15710387,3395.9,3395.8,1.47808783]
[1641481121388,14.68479,3395.9,3395.5,1.84281232]
[1641481121587,1.5,3395.7,3395.5,1.84281232]
[1641481121785,14.68479,3395.9,3395.5,1.84281232]
[1641481121786,0.153218,3395.6,3395.5,1.84281232]
[1641481121986,0.304839,3395.6,3395.5,1.84281232]
[1641481122387,0.304839,3395.6,3395.0,1.84281232]
[1641481122786,2.00479,3395.2,3395.0,2.22728432]
[1641481122988,0.458057,3395.1,3395.0,1.84281232]
[1641481123191,2.00479,3395.2,3395.0,2.30279432]
[1641481123793,2.00479,3395.9,3395.1,0.397182]
[1641481123991,2.00479,3395.9,3395.2,1.5]
[1641481124194,1.47199096,3396.5,3395.3,0.397182]
[1641481124594,1.47180247,3397.0,3395.5,1.5]
[1641481124796,2.00479,3396.4,3395.6,2.00479]
[1641481124995,1.5,3396.0,3395.5,0.6008]
[1641481125197,1.47223584,3396.0,3394.5,1.47203646]
[1641481125396,1.5,3396.1,3394.1,31.0085]
[1641481125595,0.619,3396.1,3394.1,31.0085]
[1641481125795,12.68,3396.3,3394.6,1.47200612]
[1641481125997,12.68,3396.3,3394.2,1.5]
[1641481126196,12.68,3396.1,3394.3,32.80953181]
[1641481126398,12.68,3396.1,3394.5,0.619]
[1641481126800,2.00479,3395.5,3394.7,3.50479]
[1641481126996,2.00479,3396.4,3395.4,1.5]
[1641481127196,2.00479,3396.4,3395.4,2.3514]
[1641481128898,14.68479,3396.4,3395.6,2.00479]
[1641481129199,0.304839,3396.3,3395.6,2.00479]
[1641481129402,1.084439,3396.3,3395.6,2.00479]
[1641481132199,1.084439,3396.3,3394.7,2.00479]
[1641481132798,2.00479,3395.7,3394.7,2.00479]
[1641481134602,15.41289,3395.7,3394.7,2.00479]
[1641481134798,2.73289,3395.7,3394.7,2.00479]
[1641481134998,15.41289,3395.7,3394.7,2.00479]
[1641481135199,2.73289,3395.7,3394.7,2.00479]
[1641481136201,12.68,3395.6,3394.7,2.00479]
[1641481137601,12.68,3395.6,3394.1,32.48069683]
[1641481137804,14.15238324,3395.6,3394.2,1.5]
[1641481138902,2.00479,3394.7,3394.2,1.5]
[1641481139104,2.00479,3394.7,3394.3,0.384472]
[1641481140506,2.00479,3394.7,3394.2,1.897182]
[1641481140507,0.73985864,3394.8,3394.4,1.71863618]
[1641481140805,1.24573346,3395.4,3394.7,4.97669212]
[1641481140806,0.98647818,3395.1,3394.7,4.97669212]
[1641481141006,0.98647818,3395.1,3395.0,1.5]
[1641481141206,7.818e-05,3395.1,3395.0,2.357164]
[1641481142406,2.00486818,3395.7,3395.0,2.357164]
[1641481142607,2.00486818,3395.7,3395.3,1.5]
[1641481142807,2.00486818,3395.7,3395.3,1.897182]
[1641481143609,2.00486818,3395.7,3395.3,0.397182]
[1641481144108,0.304839,3395.6,3394.9,1.84281232]
[1641481144308,0.77341886,3395.6,3395.4,1.44996713]
[1641481144511,0.153218,3395.5,3395.4,1.44996713]
[1641481144908,1.62572266,3395.5,3395.4,1.44996713]
[1641481145109,1.86753132,3395.5,3395.2,1.47759715]
[1641481145309,0.304839,3395.4,3394.9,1.23133095]
[1641481145909,12.984839,3395.4,3394.9,1.23133095]
[1641481146110,12.984839,3395.4,3394.8,0.21863618]
[1641481146111,1.47265645,3395.0,3394.8,0.21863618]
[1641481146409,13.138057,3394.9,3394.8,0.21863618]
[1641481146616,13.138057,3394.9,3394.8,1.23251924]
[1641481147010,17.147637,3394.9,3394.8,1.23251924]
[1641481147413,18.647637,3394.9,3394.6,1.47759715]
[1641481147710,12.68,3394.6,3394.1,2.4570831]
[1641481147910,12.68,3394.6,3394.1,1.2380653]
[1641481147911,1.5,3394.2,3394.1,1.2380653]
[1641481148111,1.5,3394.2,3394.1,1.47981351]
[1641481148112,15.123918,3394.2,3394.1,1.47981351]
[1641481148310,15.123918,3394.2,3393.9,2.06486357]
[1641481148510,0.304839,3394.1,3393.9,2.06486357]
[1641481148912,16.842798,3394.0,3393.9,2.06486357]
[1641481150011,16.842798,3394.0,3393.9,1.84976689]
[1641481150214,16.842798,3394.0,3393.8,6.27684763]
[1641481150411,16.842798,3394.0,3392.7,0.5994873]
[1641481150412,12.68,3393.8,3392.7,0.5994873]
[1641481150613,1.5,3392.8,3392.7,0.5994873]
[1641481150811,2.491318,3392.8,3391.4,3.37242367]
[1641481151012,2.00479,3392.2,3391.4,3.37242367]
[1641481151614,2.158008,3392.2,3391.4,3.37242367]
[1641481152013,2.158008,3392.2,3391.3,3.85455689]
[1641481152014,15.142847,3392.2,3391.8,0.5445584]
[1641481152210,2.462847,3392.2,3391.8,0.5445584]
[1641481152413,2.00479,3392.2,3391.8,0.5445584]
[1641481152613,2.00479,3392.2,3391.8,0.9417404]
[1641481153214,1.15601159,3392.1,3391.8,0.9417404]
[1641481153418,0.153218,3392.0,3391.3,1.84976689]
[1641481153814,12.68,3391.9,3391.5,0.98381607]